fUSD/lending_fUSD_20240715
["ID","MTS","AMOUNT","RATE_DAILY","PERIOD"]
[332243771,1721067051219,-500.0,0.00021918,13]
[332243772,1721067051244,-500.0,0.00021918,13]
[332243773,1721067051264,-500.0,0.00021918,13]
[332243774,1721067051284,-500.0,0.00021918,13]
[332243775,1721067051304,-500.0,0.00021918,13]
[332243776,1721067051324,-500.0,0.00021918,13]
[332243777,1721067051343,-500.0,0.00021918,13]
[332243778,1721067051365,-500.0,0.00021918,13]
[332243779,1721067051385,-500.0,0.00021918,13]
[332243780,1721067051405,-500.0,0.00021918,13]
[332243781,1721067051425,-500.0,0.00021918,13]
[332243782,1721067051444,-500.0,0.00021918,13]
[332243783,1721067051464,-500.0,0.00021918,13]
[332243784,1721067051483,-500.0,0.00021918,13]
[332243785,1721067051503,-500.0,0.00021918,13]
[332243786,1721067051522,-500.0,0.00021918,13]
[332243787,1721067051542,-500.0,0.00021918,13]
[332243788,1721067051562,-500.0,0.00021918,13]
[332243789,1721067051581,-500.0,0.00021918,13]
[332243790,1721067051601,-500.0,0.00021918,13]
[332243791,1721067051623,-500.0,0.00021918,13]
[332243792,1721067051643,-500.0,0.00021918,13]
[332243793,1721067051662,-500.0,0.00021918,13]
[332243794,1721067051682,-500.0,0.00021918,13]
[332243795,1721067051703,-500.0,0.00021918,13]
[332243796,1721067051723,-500.0,0.00021918,13]
[332243797,1721067051743,-500.0,0.00021918,13]
[332243798,1721067051764,-500.0,0.00021918,13]
[332243799,1721067051785,-500.0,0.00021918,13]
[332243800,1721067051805,-500.0,0.00021918,13]
[332243801,1721067051825,-500.0,0.00021918,13]
[332243802,1721067051845,-500.0,0.00021918,13]
[332243803,1721067051867,-500.0,0.00021918,13]
[332243804,1721067051889,-500.0,0.00021918,13]
[332243805,1721067051908,-500.0,0.00021918,13]
[332243806,1721067051928,-500.0,0.00021918,13]
[332243807,1721067051952,-500.0,0.00021918,13]
[332243808,1721067051972,-500.0,0.00021918,13]
[332243809,1721067051991,-500.0,0.00021918,13]
[332243810,1721067052012,-500.0,0.00021918,13]
[332243811,1721067052032,-500.0,0.00021918,13]
[332243812,1721067052053,-500.0,0.00021918,13]
[332243813,1721067052073,-500.0,0.00021918,13]
[332243814,1721067052092,-500.0,0.00021918,13]
[332243815,1721067052113,-500.0,0.00021918,13]
[332243816,1721067052134,-500.0,0.00021918,13]
[332243817,1721067052154,-500.0,0.00021918,13]
[332243818,1721067052174,-500.0,0.00021918,13]
[332243819,1721067052194,-500.0,0.00021918,13]
[332243820,1721067052214,-500.0,0.00021918,13]
[332243821,1721067052234,-500.0,0.00021918,13]
[332243822,1721067052254,-500.0,0.00021918,13]
[332243823,1721067052273,-500.0,0.00021918,13]
[332243824,1721067052294,-500.0,0.00021918,13]
[332243825,1721067052314,-509.0,0.00021918,13]
[332243826,1721067052341,-1800.0,0.00022,23]
[332243827,1721067052365,-1000.0,0.00022,7]
[332243828,1721067052388,-1049.00245473,0.00022,7]
[332243829,1721067052410,-740.12366692,0.00022,7]
[332243830,1721067052430,-1650.0,0.00022,10]
[332243831,1721067052452,-1369.98,0.00022049,7]
[332243832,1721067052472,-1369.98,0.00022049,7]
[332243833,1721067052498,-1369.98,0.00022322,7]
[332243834,1721067052518,-1369.98,0.00022322,7]
[332243835,1721067052539,-1650.0,0.000225,10]
[332243836,1721067052560,-1369.98,0.00022596,7]
[332243837,1721067052580,-1369.98,0.00022596,7]
[332243838,1721067052601,-532.34039305,0.000227,30]
[332243839,1721067052630,-1800.0,0.00023,24]
[332243840,1721067052651,-3000.0,0.00023,30]
[332243841,1721067052672,-1650.0,0.00023,11]
[332243842,1721067052696,-1650.0,0.000235,11]
[332243843,1721067052719,-447.14,0.00023831,30]
[332243844,1721067052741,-1800.0,0.00024,25]
[332243845,1721067052761,-2388.36612427,0.00024,30]
[332243846,1721067052781,-2000.0,0.00024,30]
[332243847,1721067052801,-1650.0,0.00024,12]
[332243848,1721067052822,-1359.62244568,0.00024076,7]
[332243849,1721067052842,-551.10537977,0.00024076,45]
[332243850,1721067052870,-1650.0,0.000245,12]
[332243851,1721067052892,-1407.85,0.00024657,7]
[332243852,1721067052914,-1407.85,0.00024657,7]
[332243853,1721067052934,-1407.85,0.00024657,7]
[332243854,1721067052958,-1407.85,0.00024657,7]
[332243855,1721067052979,-1407.85,0.00024657,7]
[332243856,1721067053000,-1407.85,0.00024657,7]
[332243857,1721067053021,-1407.85,0.00024657,7]
[332243858,1721067053043,-1407.85,0.00024657,7]
[332243859,1721067053064,-1407.85,0.00024657,7]
[332243860,1721067053084,-1407.85,0.00024657,7]
[332243861,1721067053104,-1407.85,0.00024657,7]
[332243862,1721067053126,-1407.85,0.00024657,7]
[332243863,1721067053146,-1407.85,0.00024657,7]
[332243864,1721067053168,-1407.85,0.00024657,7]
[332243865,1721067053189,-1407.85,0.00024657,7]
[332243866,1721067053209,-1407.85,0.00024657,7]
[332243867,1721067053231,-1407.85,0.00024657,7]
[332243868,1721067053252,-1407.85,0.00024657,7]
[332243869,1721067053274,-1407.85,0.00024657,7]
[332243870,1721067053294,-1407.85,0.00024657,7]
[332243871,1721067053315,-1407.85,0.00024657,7]
[332243872,1721067053336,-1407.85,0.00024657,7]
[332243873,1721067053358,-1407.85,0.00024657,7]
[332243874,1721067053380,-1407.92591217,0.00024657,7]
[332243875,1721067053403,-506.470042,0.00024658,7]
[332243876,1721067053423,-506.470042,0.00024658,7]
[332243877,1721067053443,-506.470042,0.00024658,7]
[332243878,1721067053464,-506.470042,0.00024658,7]
[332243879,1721067053485,-506.470042,0.00024658,7]
[332243880,1721067053505,-506.470042,0.00024658,7]
[332243881,1721067053526,-506.470042,0.00024658,7]
[332243882,1721067053546,-506.470042,0.00024658,7]
[332243883,1721067053567,-506.470042,0.00024658,7]
[332243884,1721067053588,-506.470042,0.00024658,7]
[332243885,1721067053610,-506.470042,0.00024658,7]
[332243886,1721067053631,-506.470042,0.00024658,7]
[332243887,1721067053652,-506.470042,0.00024658,7]
[332243888,1721067053672,-506.470042,0.00024658,7]
[332243889,1721067053693,-506.470042,0.00024658,7]
[332243890,1721067053713,-506.470042,0.00024658,7]
[332243891,1721067053737,-506.470042,0.00024658,7]
[332243892,1721067053758,-506.470042,0.00024658,7]
[332243893,1721067053778,-506.470042,0.00024658,7]
[332243894,1721067053799,-506.470042,0.00024658,7]
[332243895,1721067053824,-500.00000001,0.000248,20]
[332243896,1721067053847,-2110.0,0.00025,15]
[332243897,1721067053873,-2706.574644,0.00025,14]
[332243898,1721067053897,-1800.0,0.00025,26]
[332243899,1721067053920,-2310.29990584,0.00025,30]
[332243900,1721067053941,-2927.25333958,0.00025,30]
[332243901,1721067053964,-1288.77244507,0.00025,30]
[332243902,1721067053986,-27235.12471477,0.00025,7]
[332243903,1721067054007,-1650.0,0.00025,13]
[332243904,1721067054032,-604.0,0.00025117,7]
[332243905,1721067054054,-280.0,0.000253,10]
[332243906,1721067054076,-4311.87925035,0.00025488,15]
[332243907,1721067054097,-2110.0,0.000255,15]
[332243908,1721067054120,-1650.0,0.000255,13]
[332243909,1721067054144,-1208.0,0.00025753,30]
[332243910,1721067054166,-455.94,0.000259,30]
[332243911,1721067054193,-2110.0,0.00026,15]
[332243912,1721067054214,-671.88283645,0.00026,90]
[332243913,1721067054235,-1800.0,0.00026,27]
[332243914,1721067054257,-711.83054267,0.00026,30]
[332243915,1721067054279,-1650.0,0.00026,14]
[332243916,1721067054304,-2110.0,0.000265,15]
[332243917,1721067054471,-1650.0,0.000265,14]
[332243918,1721067054500,-6052.94197989,0.000268,10]
[332243919,1721067054522,-2110.0,0.00027,15]
[332243920,1721067054542,-1800.0,0.00027,28]
[332243921,1721067054562,-180.0,0.00027,30]
[332243922,1721067054582,-1000.0,0.00027,30]
[332243923,1721067054605,-1650.0,0.00027,15]
[332243924,1721067054627,-666.0,0.00027068,120]
[332243925,1721067054647,-500.0,0.00027096,120]
[332243926,1721067054667,-150.0,0.00027188,120]
[332243927,1721067054687,-888.0,0.00027342,120]
[332243928,1721067054707,-81445.86571171,0.0002736,120]
[332243929,1721067141488,372.61,0.00018849,30]
[332243946,1721067775432,180.42,9.889e-05,2]
[332243947,1721067811035,341.55,0.00018849,30]
[332243951,1721067995766,171.05,9.758e-05,2]
[332243958,1721068107017,212.06693148,9.758e-05,2]
[332243980,1721068231630,-857.2898,0.00010356,2]
[332243981,1721068231639,-828.9,0.00010579,2]
[332243982,1721068231649,-300.0,0.00011097,2]
[332243983,1721068231658,-150.0,0.00011097,2]
[332243984,1721068231667,-173.97298198,0.00011098,2]
[332243985,1721068231688,-719.56763967,0.00011098,2]
[332243986,1721068231699,-315.29707946,0.00011098,2]
[332243987,1721068231710,-415.09721781,0.00011098,2]
[332243988,1721068231721,-308.807424,0.00011098,2]
[332243989,1721068231733,-3216.51094319,0.00011098,2]
[332243990,1721068231742,-688.81360283,0.00011098,2]
[332243991,1721068231753,-756.06641646,0.00011098,2]
[332243992,1721068231762,-1331.91913325,0.00011098,2]
[332243993,1721068231772,-1352.08739484,0.00011098,2]
[332243994,1721068231783,-269.0000005,0.00011098,2]
[332243995,1721068231795,-583.0177964,0.00011098,2]
[332243996,1721068231804,-648.83352401,0.00011098,2]
[332243997,1721068231815,-297.44612122,0.00011098,2]
[332243999,1721068231824,-14.39560456,0.00011098,2]
[332244001,1721068231834,-833.36001832,0.00011098,2]
[332244003,1721068231845,-537.12016184,0.00011098,2]
[332244005,1721068231876,-2367.38584379,0.00011098,2]
[332244006,1721068233833,-1.06294993,0.00011098,2]
[332244007,1721068233845,-1082.26155855,0.00011098,2]
[332244011,1721068238704,-1270.66162,0.00011098,2]
[332244012,1721068238715,-125.95852965,0.00011098,2]
[332244013,1721068238725,-231.81584553,0.00011098,2]
[332244014,1721068238735,-159.25655165,0.00011098,2]
[332244015,1721068238744,-155.0,0.00011098,2]
[332244016,1721068238754,-402.68542471,0.00011197,2]
[332244017,1721068238763,-188.62306668,0.00011197,2]
[332244018,1721068238773,-155.51811222,0.00011197,2]
[332244019,1721068238782,-531.12735371,0.00011197,2]
[332244020,1721068238792,-26645.36325204,0.00011199,2]
[332244021,1721068238803,-25760.07313379,0.00011199,2]
[332244022,1721068238813,-272.69783727,0.00011199,2]
[332244023,1721068238856,-1549.36957408,0.00011199,2]
[332244024,1721068238867,-2820.32,0.00011199,2]
[332244025,1721068239003,-2654.91902682,0.00011199,2]
[332244026,1721068239015,-3708.03322407,0.00011199,2]
[332244027,1721068239025,-1323.2825866,0.00011199,2]
[332244028,1721068239034,-405.14638905,0.00011199,2]
[332244029,1721068239044,-422.6632937,0.00011199,2]
[332244030,1721068239054,-420.0,0.00012193,2]
[332244031,1721068239063,-200.03,0.0001227,2]
[332244032,1721068239073,-296.19802604,0.00012273,2]
[332244033,1721068239082,-250.0,0.00012294,2]
[332244034,1721068239091,-5820.57,0.00012299,2]
[332244035,1721068239101,-722.24202244,0.00012302,2]
[332244036,1721068239111,-209.03744674,0.00012302,2]
[332244037,1721068239121,-366.13143144,0.00012314,2]
[332244038,1721068239131,-150.0,0.00012361,2]
[332244039,1721068239140,-1000.0,0.00012364,2]
[332244040,1721068239150,-220.7,0.00012795,3]
[332244041,1721068239159,-492.003,0.000128,2]
[332244042,1721068239169,-2316.43299562,0.000128,2]
[332244043,1721068239180,-820.5999,0.000128,2]
[332244044,1721068239192,-24357.36910438,0.000128,2]
[332244045,1721068239202,-150.99,0.000128,2]
[332244046,1721068239211,-179.77556321,0.000128,2]
[332244047,1721068239220,-321.66523391,0.00012802,2]
[332244048,1721068239230,-828.9,0.00012843,2]
[332244049,1721068239239,-189.03632988,0.0001289,2]
[332244050,1721068239249,-5459.01032664,0.000129,2]
[332244052,1721068239671,-137140.07422625,0.000129,2]
[332244053,1721068239785,-3172.28499206,0.000129,2]
[332244054,1721068239903,-1026.17046559,0.000129,2]
[332244055,1721068239936,-1324.86499987,0.000129,2]
[332244056,1721068240060,-28691.58364363,0.000129,2]
[332244202,1721068243637,-5015.34359997,0.000129,2]
[332244204,1721068243648,-1243.9391314,0.000129,2]
[332244206,1721068243659,-41532.4852048,0.000129,2]
[332244208,1721068243670,-20728.0977604,0.000129,2]
[332244209,1721068243682,-384.34999965,0.000129,2]
[332244210,1721068243693,-708.29104505,0.000129,2]
[332244211,1721068243810,-8450.7127794,0.000129,2]
[332244226,1721068245570,-1741.6135,0.000129,2]
[332244227,1721068245582,-3219.0,0.000129,2]
[332244228,1721068245686,-1014.81,0.000129,2]
[332244229,1721068245698,-11651.21138074,0.000129,2]
[332244230,1721068245709,-5083.8,0.000129,2]
[332244231,1721068245857,-1470.7035555,0.000129,2]
[332244232,1721068245871,-424.35038744,0.000129,2]
[332244233,1721068245883,-724.52419805,0.000129,2]
[332244234,1721068245896,-8328.27221717,0.000129,2]
[332244235,1721068245919,-309293.20400179,0.000129,2]
[332244236,1721068245931,-2547.92756546,0.000129,2]
[332244237,1721068245943,-2207.1800953,0.000129,2]
[332244238,1721068245965,-5191.19038756,0.000129,2]
[332244239,1721068321947,313.08,0.00018849,30]
[332244243,1721068901777,286.99,0.00018849,30]
[332244244,1721068957590,559.68,0.00025,60]
[332244245,1721068997106,180.42,9.502e-05,2]
[332244246,1721069030054,296.07526802,0.00027,120]
[332244247,1721069050336,235962.11179038,9.502e-05,2]
[332244248,1721069075735,242.01149751,9.502e-05,2]
[332244250,1721069146342,23451.91978063,9.502e-05,2]
[332244251,1721069146372,25379.08070635,9.502e-05,2]
[332244283,1721069314385,815.93,9.68e-05,2]
[332244317,1721069431802,-920.41111532,0.00010859,2]
[332244318,1721069431814,-920.41111532,0.00010928,2]
[332244319,1721069431824,-253.77,0.00010959,2]
[332244320,1721069431833,-211.48,0.00010959,2]
[332244321,1721069431842,-176.23,0.00010959,2]
[332244322,1721069431851,-881.17,0.00010959,2]
[332244323,1721069431860,-920.41111532,0.00010996,2]
[332244324,1721069431870,-300.0,0.00011095,2]
[332244325,1721069431879,-300.0,0.00011096,2]
[332244326,1721069431889,-8721.70958708,0.00011097,2]
[332244327,1721069431898,-150.0,0.00011097,2]
[332244328,1721069431908,-159.25655165,0.00011098,2]
[332244329,1721069431917,-3077.57558188,0.00011098,2]
[332244330,1721069431926,-5396.7213134,0.00011098,2]
[332244331,1721069431936,-604.78351958,0.00011098,2]
[332244332,1721069431945,-647.26467047,0.00011098,2]
[332244333,1721069431954,-519.32016709,0.00011098,2]
[332244334,1721069431963,-695.92551462,0.00011098,2]
[332244335,1721069431973,-616.33184579,0.00011098,2]
[332244336,1721069431982,-3549.18737265,0.00011098,2]
[332244337,1721069431991,-3393.51140613,0.00011098,2]
[332244338,1721069432000,-527.80162773,0.00011098,2]
[332244339,1721069432009,-254.53325388,0.00011098,2]
[332244340,1721069432020,-196.43586911,0.00011098,2]
[332244341,1721069432029,-202.96927408,0.00011098,2]
[332244342,1721069432039,-1072.38944442,0.00011098,2]
[332244343,1721069432048,-346.93460697,0.00011098,2]
[332244344,1721069432057,-218.4212033,0.00011098,2]
[332244345,1721069432066,-316.20472676,0.00011098,2]
[332244346,1721069432075,-156.43238875,0.00011098,2]
[332244347,1721069432085,-376.00292636,0.00011098,2]
[332244348,1721069432094,-3112.40418631,0.00011098,2]
[332244349,1721069432103,-1297.88213268,0.00011098,2]
[332244350,1721069432112,-158.78655632,0.00011098,2]
[332244351,1721069432121,-155.0,0.00011098,2]
[332244352,1721069432130,-2204.10519174,0.00011098,2]
[332244353,1721069432140,-946.27964523,0.00011098,2]
[332244354,1721069432149,-163.93444029,0.00011098,2]
[332244355,1721069432158,-504.94138761,0.00011098,2]
[332244356,1721069432167,-298.10716168,0.00011098,2]
[332244357,1721069432176,-890.13904212,0.00011098,2]
[332244358,1721069432185,-1444.88001929,0.00011098,2]
[332244359,1721069432195,-1254.63523304,0.00011098,2]
[332244360,1721069432204,-369.18293041,0.00011197,2]
[332244361,1721069432213,-206.48733416,0.00011197,2]
[332244362,1721069432223,-250.0,0.00011832,2]
[332244363,1721069432232,-500.0,0.00011878,2]
[332244364,1721069432241,-202.73,0.00011879,2]
[332244365,1721069432250,-800.0,0.00011919,2]
[332244366,1721069432259,-250.0,0.00011926,2]
[332244367,1721069432270,-815.93,0.00011944,2]
[332244368,1721069432279,-247.34,0.00012119,2]
[332244369,1721069432289,-197.27,0.00012132,2]
[332244370,1721069432298,-292.81,0.00012162,2]
[332244371,1721069432308,-420.0,0.00012191,2]
[332244372,1721069432317,-420.0,0.00012192,2]
[332244373,1721069432327,-155.0,0.00012314,2]
[332244374,1721069432336,-155.0,0.00012314,2]
[332244375,1721069432346,-200.0,0.00012409,2]
[332244376,1721069432355,-218.14,0.00012795,2]
[332244377,1721069432364,-157.5675927,0.000128,2]
[332244378,1721069432373,-165.5317,0.000128,2]
[332244379,1721069432383,-1976.53,0.000128,2]
[332244380,1721069432392,-322.05182512,0.000128,2]
[332244381,1721069432402,-163.87622134,0.00012802,2]
[332244382,1721069432411,-189.03632989,0.0001289,2]
[332244383,1721069432420,-548874.5300689,0.000129,2]
[332244384,1721069432443,-12191.51498028,0.000129,2]
[332244385,1721069432454,-63649.56074103,0.000129,2]
[332244386,1721069432476,-11571.14143,0.000129,2]
[332244387,1721069432487,-800.07111468,0.000129,2]
[332244388,1721069432498,-443.73261381,0.000129,2]
[332244389,1721069432509,-2377.36767578,0.000129,2]
[332244390,1721069433242,263.07,0.00018849,30]
[332244411,1721069439016,-734.70866164,0.00011098,2]
[332244412,1721069439028,-710.17135765,0.00011098,2]
[332244413,1721069439037,-161.26726908,0.00011197,2]
[332244414,1721069439046,-147.47276011,0.000129,2]
[332244415,1721069439103,-536.14392203,0.000129,2]
[332244416,1721069439114,-335.125,0.000129,2]
[332244417,1721069439125,-21284.39102605,0.000129,2]
[332244418,1721069439136,-384.59479513,0.000129,2]
[332244419,1721069439146,-3804.36369245,0.000129,2]
[332244420,1721069439157,-20344.67526414,0.000129,2]
[332244421,1721069439168,-781.88578096,0.000129,2]
[332244422,1721069439179,-769.22313,0.000129,2]
[332244423,1721069439190,-31379.86762403,0.000129,2]
[332244424,1721069439201,-347.93,0.000129,2]
[332244425,1721069439212,-630.05082092,0.000129,2]
[332244426,1721069439272,-7200.0,0.000129,2]
[332244427,1721069439284,-28355.42344949,0.000129,2]
[332244428,1721069439361,-1082.17917477,0.000129,2]
[332244456,1721069439885,-307767.97853551,0.000129,2]
[332244457,1721069439896,-113190.36795995,0.000129,2]
[332244458,1721069439907,-1780.95012414,0.000129,2]
[332244459,1721069439979,-82757.37687966,0.000129,2]
[332244460,1721069440065,-2567.59544078,0.000129,2]
[332244461,1721069440076,-862.25684787,0.000129,2]
[332244462,1721069440087,-517.3092,0.000129,2]
[332244463,1721069440160,-1564.4,0.000129,2]
[332244464,1721069440171,-1585.42074623,0.000129,2]
[332244465,1721069440182,-3532.00000001,0.000129,2]
[332244466,1721069440193,-260.08778133,0.000129,2]
[332244547,1721069444546,-431.57658303,0.00011733,2]
[332244549,1721069444556,-20.31319378,0.000129,2]
[332244550,1721069444676,-791.68781801,0.000129,2]
[332244551,1721069444688,-1310.42936115,0.000129,2]
[332244552,1721069444700,-44896.59129199,0.000129,2]
[332244553,1721069444776,-3041.95,0.000129,2]
[332244554,1721069444878,-1750.91473499,0.000129,2]
[332244555,1721069444890,-268.77602007,0.000129,2]
[332244556,1721069444902,-90577.48066133,0.000129,2]
[332244557,1721069444913,-681.83583395,0.000129,2]
[332244558,1721069444924,-392.66360108,0.000129,2]
[332244559,1721069444977,-1574.87398594,0.000129,2]
[332244564,1721069445839,-6712.6170832,0.000129,2]
[332244565,1721069445850,-882.1746128,0.000129,2]
[332244566,1721069445861,-281.0,0.000129,2]
[332244567,1721069445906,-854.12251611,0.000129,2]
[332244568,1721069445917,-1532.24105838,0.000129,2]
[332244569,1721069445928,-622.22852932,0.000129,2]
[332244570,1721069445978,-596.11968003,0.000129,2]
[332244571,1721069445989,-450.59466083,0.000129,2]
[332244572,1721069446017,-115920.64940731,0.000129,2]
[332244573,1721069446030,-11582.50964721,0.000129,2]
[332244574,1721069446041,-439.48896357,0.000129,2]
[332244575,1721069446052,-3399.39625553,0.000129,2]
[332244576,1721069446063,-429.75631163,0.000129,2]
[332244577,1721069446074,-408.48752001,0.000129,2]
[332244578,1721069446085,-340670.94821133,0.000129,2]
[332244579,1721069446113,-1265.18101471,0.000129,2]
[332244580,1721069446124,-1692.20876631,0.000129,2]
[332244581,1721069446135,-766084.42581976,0.000129,2]
[332244582,1721069446177,-71778.85144141,0.000129,2]
[332244583,1721069446188,-397773.4979545,0.000129,2]
[332244584,1721069446198,-3000.0,0.000129,2]
[332244585,1721069446207,-168.14640675,0.000129,2]
[332244586,1721069446217,-1250.0,0.00013,2]
[332244587,1721069446225,-168.14640675,0.00013075,2]
[332244588,1721069446235,-155.0,0.00013128,2]
[332244589,1721069446244,-863.07863697,0.00013128,2]
[332244590,1721069446253,-157.56759267,0.00013167,2]
[332244592,1721069446263,-1315.63332521,0.00013281,2]
[332244593,1721069446272,-168.14640675,0.0001335,2]
[332244595,1721069446283,-202.73,0.00013364,2]
[332244597,1721069446292,-587.0,0.00013395,2]
[332244598,1721069446301,-153.373,0.00013396,2]
[332244599,1721069446310,-198.622912,0.00013396,2]
[332244600,1721069446319,-159.66022,0.00013396,2]
[332244601,1721069446329,-587.0,0.00013396,2]
[332244602,1721069446338,-800.0,0.00013408,2]
[332244603,1721069446347,-266.73419059,0.00013472,2]
[332244604,1721069446356,-745.94355234,0.00013516,2]
[332244605,1721069446365,-533.69541907,0.00013516,2]
[332244606,1721069446374,-157.56759267,0.00013533,2]
[332244607,1721069446383,-650.0,0.00013533,2]
[332244608,1721069446392,-168.14640675,0.00013625,2]
[332244609,1721069446401,-197.27,0.00013649,2]
[332244610,1721069446410,-182.65377942,0.00013698,2]
[332244611,1721069446420,-500.0,0.00013698,2]
[332244612,1721069446429,-506.94399811,0.00013698,2]
[332244613,1721069446438,-500.0,0.00013698,2]
[332244614,1721069446448,-500.0,0.00013698,2]
[332244615,1721069446457,-547.99,0.00013698,2]
[332244616,1721069446466,-566.18,0.00013698,2]
[332244617,1721069446475,-500.0,0.00013698,2]
[332244618,1721069446484,-500.0,0.00013698,2]
[332244619,1721069446493,-500.0,0.00013698,2]
[332244620,1721069446503,-500.0,0.00013698,2]
[332244621,1721069446512,-500.0,0.00013698,2]
[332244622,1721069446521,-500.0,0.00013698,2]
[332244623,1721069446531,-500.0,0.00013698,2]
[332244624,1721069446540,-500.0,0.00013698,2]
[332244625,1721069446550,-500.0,0.00013698,2]
[332244626,1721069446559,-500.0,0.00013698,2]
[332244627,1721069446568,-500.0,0.00013698,2]
[332244628,1721069446577,-500.0,0.00013698,2]
[332244629,1721069446587,-500.0,0.00013698,2]
[332244630,1721069446596,-1033.68,0.00013698,2]
[332244631,1721069446605,-500.0,0.00013698,2]
[332244632,1721069446615,-500.0,0.00013698,2]
[332244633,1721069446624,-500.0,0.00013698,2]
[332244634,1721069446637,-400.56295444,0.00013698,2]
[332244635,1721069446647,-500.0,0.00013698,2]
[332244636,1721069446656,-500.0,0.00013698,2]
[332244637,1721069446666,-500.0,0.00013698,2]
[332244638,1721069446677,-583.5,0.00013698,2]
[332244639,1721069446687,-500.0,0.00013698,2]
[332244640,1721069446696,-622.25541373,0.00013698,2]
[332244641,1721069446705,-500.0,0.00013698,2]
[332244642,1721069446717,-500.0,0.00013698,2]
[332244643,1721069446726,-500.0,0.00013698,2]
[332244644,1721069446736,-500.0,0.00013698,2]
[332244645,1721069446746,-500.0,0.00013698,2]
[332244646,1721069446755,-500.0,0.00013698,2]
[332244647,1721069446765,-500.0,0.00013698,2]
[332244648,1721069446932,-500.0,0.00013698,2]
[332244649,1721069446950,-500.0,0.00013698,2]
[332244650,1721069446960,-607.64,0.00013698,2]
[332244651,1721069446971,-500.0,0.00013698,2]
[332244652,1721069446981,-500.0,0.00013698,2]
[332244653,1721069446991,-500.0,0.00013698,2]
[332244654,1721069447002,-500.0,0.00013698,2]
[332244655,1721069447012,-500.0,0.00013698,2]
[332244656,1721069447023,-500.0,0.00013698,2]
[332244657,1721069447038,-500.0,0.00013698,2]
[332244658,1721069447048,-500.0,0.00013698,2]
[332244659,1721069447059,-350.58,0.00013698,2]
[332244660,1721069447069,-438.93776688,0.00013698,2]
[332244661,1721069447081,-1521.23,0.00013698,2]
[332244662,1721069447092,-597.32264707,0.00013698,2]
[332244663,1721069447102,-500.0,0.00013698,2]
[332244664,1721069447113,-500.0,0.00013698,2]
[332244665,1721069447124,-199.22172282,0.00013698,2]
[332244666,1721069447134,-500.0,0.00013698,2]
[332244667,1721069447144,-500.0,0.00013698,2]
[332244668,1721069447155,-992.34,0.00013698,2]
[332244669,1721069447165,-500.0,0.00013698,2]
[332244670,1721069447177,-500.0,0.00013698,2]
[332244671,1721069447187,-500.0,0.00013698,2]
[332244672,1721069447197,-514.06,0.00013698,2]
[332244673,1721069447207,-500.0,0.00013698,2]
[332244674,1721069447216,-500.0,0.00013698,2]
[332244675,1721069447226,-185.7,0.00013699,2]
[332244676,1721069447236,-419.95,0.00013699,2]
[332244677,1721069447245,-1073.84,0.00013699,2]
[332244678,1721069447255,-4417.99,0.00013699,2]
[332244679,1721069447264,-7838.61979526,0.00013699,2]
[332244680,1721069447471,-629.27928532,0.00013699,2]
[332244681,1721069447482,-3843.39602199,0.00013699,2]
[332244697,1721070023458,171.72862134,5e-05,2]
[332244700,1721070091120,155.0,5e-05,2]
[332244702,1721070093038,15254.91575731,5e-05,2]
[332244703,1721070093701,1265.01058332,6.061e-05,2]
[332244704,1721070093752,307.35633759,0.0001,2]
[332244705,1721070097383,231093.70288458,5e-05,2]
[332244706,1721070099109,960.89206454,5e-05,2]
[332244707,1721070110087,158.70478125,5e-05,2]